fUSD/lending_fUSD_20250223
["ID","MTS","AMOUNT","RATE_DAILY","PERIOD"]
[354140982,1740281453590,-177702.43172857,0.000139,2]
[354140983,1740281453601,-66136.42288801,0.000139,2]
[354140984,1740281453611,-321.04181056,0.00013917,2]
[354140985,1740281453621,-1000.0,0.00013921,2]
[354140986,1740281453630,-2161.57,0.00013949,2]
[354140987,1740281453639,-599.03895976,0.0001397,2]
[354140988,1740281453649,-1056.86,0.00013972,2]
[354140989,1740281453659,-8170.89,0.00014,7]
[354140990,1740281453668,-150.0,0.00014,2]
[354140991,1740281453677,-250.9944311,0.00014,2]
[354140992,1740281453686,-650.0,0.00014,2]
[354140993,1740281453695,-31816.48178917,0.00014,2]
[354140994,1740281453705,-3974.19469061,0.00014,2]
[354140995,1740281453714,-2161.57,0.00014031,2]
[354140996,1740281453723,-665.5,0.00014072,2]
[354140997,1740281453732,-1056.86,0.00014109,2]
[354140998,1740281453741,-2161.57,0.00014113,2]
[354140999,1740281453750,-166.3,0.0001419,2]
[354141000,1740281453759,-2161.57,0.00014195,2]
[354141001,1740281453768,-153.0,0.00014196,2]
[354141002,1740281453777,-153.0,0.00014196,2]
[354141003,1740281453786,-960.0,0.00014218,2]
[354141004,1740281453795,-204.37891366,0.00014233,2]
[354141005,1740281453804,-1056.86,0.00014246,2]
[354141006,1740281453814,-2161.57,0.00014278,2]
[354141007,1740281453823,-2161.57,0.0001436,2]
[354141008,1740281453832,-1056.86,0.00014383,2]
[354141009,1740281453841,-9880.74989257,0.0001439,2]
[354141010,1740281453851,-903.36,0.00014438,2]
[354141011,1740281453859,-2161.57,0.00014442,2]
[354141012,1740281453869,-1056.86,0.0001452,2]
[354141013,1740281453877,-2161.57,0.00014524,2]
[354141014,1740281453887,-2161.57,0.00014606,2]
[354141015,1740281453896,-732.05,0.0001462,2]
[354141016,1740281453905,-1152.0,0.0001464,2]
[354141017,1740281453915,-1056.86,0.00014657,2]
[354141018,1740281453924,-159.4,0.00014677,2]
[354141019,1740281453933,-2161.6955312,0.00014689,2]
[354141020,1740281453942,-1060.0,0.00014706,2]
[354141021,1740281453952,-1373.93,0.00014718,2]
[354141022,1740281453961,-1554.8400647,0.00014781,2]
[354141023,1740281453971,-300.0,0.0001479,2]
[354141024,1740281453980,-994.3283692,0.0001479,2]
[354141025,1740281453992,-563014.06532162,0.00014791,2]
[354141026,1740281454002,-151.0,0.00014791,2]
[354141027,1740281454011,-151.0,0.00014791,2]
[354141028,1740281454021,-169.004006,0.00014791,2]
[354141029,1740281454031,-291.359663,0.00014791,2]
[354141030,1740281454040,-151.0,0.00014791,2]
[354141031,1740281454049,-1446.880454,0.00014791,2]
[354141032,1740281454059,-1446.880454,0.00014791,2]
[354141033,1740281454069,-180.943033,0.00014791,2]
[354141034,1740281454080,-151.0,0.00014791,2]
[354141035,1740281454089,-180.943033,0.00014791,2]
[354141036,1740281454098,-221.45891,0.00014791,2]
[354141037,1740281454107,-151.0,0.00014791,2]
[354141038,1740281454117,-151.0,0.00014791,2]
[354141039,1740281454127,-151.0,0.00014791,2]
[354141040,1740281454136,-151.0,0.00014791,2]
[354141041,1740281454146,-151.0,0.00014791,2]
[354141042,1740281454156,-151.0,0.00014791,2]
[354141043,1740281454166,-453.479253,0.00014791,2]
[354141044,1740281454176,-151.0,0.00014791,2]
[354141045,1740281454186,-453.479253,0.00014791,2]
[354141046,1740281454195,-151.0,0.00014791,2]
[354141047,1740281454205,-151.0,0.00014791,2]
[354141048,1740281454215,-151.0,0.00014791,2]
[354141049,1740281454225,-151.0,0.00014791,2]
[354141050,1740281454234,-10000.0,0.00014791,2]
[354141051,1740281454245,-10000.0,0.00014791,2]
[354141052,1740281454254,-10000.0,0.00014791,2]
[354141053,1740281454264,-10000.0,0.00014791,2]
[354141054,1740281454274,-1056.86,0.00014794,2]
[354141055,1740281454283,-869.93,0.00014799,2]
[354141056,1740281454293,-869.93,0.00014799,2]
[354141057,1740281454303,-1000.0,0.00014799,2]
[354141058,1740281454313,-1000.0,0.00014799,2]
[354141059,1740281454322,-300.0,0.00014799,2]
[354141060,1740281454331,-300.0,0.00014799,2]
[354141061,1740281454341,-581.62907,0.000148,2]
[354141062,1740281454350,-159923.869097,0.000148,3]
[354141063,1740281454360,-568.40519479,0.00014835,2]
[354141064,1740281454371,-807.9822947,0.0001484,2]
[354141065,1740281454380,-987.4499929,0.0001484,2]
[354141066,1740281454390,-94180.1,0.0001485,2]
[354141067,1740281454400,-300.0,0.00014899,2]
[354141068,1740281454410,-300.0,0.00014899,2]
[354141069,1740281454419,-869.93,0.00014899,2]
[354141070,1740281454430,-423.37922539,0.00014899,2]
[354141071,1740281454438,-204.37891366,0.000149,2]
[354141072,1740281454447,-215.89466897,0.000149,2]
[354141073,1740281454457,-215.89466897,0.000149,2]
[354141074,1740281454466,-215.89466897,0.000149,2]
[354141075,1740281454475,-203.82265411,0.000149,2]
[354141076,1740281454485,-151.0,0.000149,2]
[354141077,1740281454495,-151.0,0.000149,2]
[354141078,1740281454504,-151.0,0.000149,2]
[354141079,1740281454514,-1446.880454,0.000149,2]
[354141080,1740281454524,-1446.880454,0.000149,2]
[354141081,1740281454534,-180.943033,0.000149,2]
[354141082,1740281454543,-151.0,0.000149,2]
[354141083,1740281454553,-180.943033,0.000149,2]
[354141084,1740281454565,-148805.002533,0.000149,3]
[354141085,1740281454575,-151.0,0.000149,2]
[354141086,1740281454585,-151.0,0.000149,2]
[354141087,1740281454595,-151.0,0.000149,2]
[354141088,1740281454606,-5840.32676118,0.000149,2]
[354141089,1740281454616,-151.0,0.000149,2]
[354141090,1740281454626,-453.479253,0.000149,2]
[354141091,1740281454636,-151.0,0.000149,2]
[354141092,1740281454645,-453.479253,0.000149,2]
[354141093,1740281454655,-151.0,0.000149,2]
[354141094,1740281454664,-243.03148,0.000149,2]
[354141095,1740281454674,-151.0,0.000149,2]
[354141096,1740281454683,-151.0,0.000149,2]
[354141097,1740281454693,-642.51602904,0.000149,2]
[354141098,1740281454703,-10000.0,0.000149,2]
[354141099,1740281454712,-10000.0,0.000149,2]
[354141100,1740281454722,-10000.0,0.000149,2]
[354141101,1740281454732,-10000.0,0.000149,2]
[354141102,1740281454742,-407.0098966,0.0001492,2]
[354141103,1740281454752,-1500.0,0.00014922,2]
[354141104,1740281454761,-1056.86,0.00014931,2]
[354141105,1740281454771,-835.65707473,0.00014935,2]
[354141106,1740281454781,-1000.0,0.00014937,2]
[354141107,1740281454790,-753.7337965,0.0001498,2]
[354141108,1740281454799,-11697.0,0.0001499,2]
[354141109,1740281454809,-10490.59214543,0.00015,10]
[354141110,1740281454818,-415.42839511,0.00015,10]
[354141111,1740281454827,-6301.0,0.00015,3]
[354141112,1740281454837,-534.44,0.00015024,2]
[354141113,1740281454846,-1056.86,0.00015068,2]
[354141114,1740281454856,-1534.1,0.00015068,2]
[354141115,1740281454865,-164.64,0.00015068,2]
[354141116,1740281454874,-500.0,0.00015151,2]
[354141117,1740281454884,-1000.0,0.00015168,2]
[354141118,1740281454893,-4000.0,0.0001517,2]
[354141119,1740281454903,-1056.86,0.00015205,2]
[354141120,1740281454912,-1000.0,0.00015226,2]
[354141121,1740281454923,-1000.0,0.00015272,2]
[354141122,1740281454932,-1056.86,0.00015342,2]
[354141123,1740281454942,-1000.0,0.00015398,2]
[354141124,1740281454952,-1060.0,0.00015441,2]
[354141125,1740281454961,-1056.86,0.00015479,2]
[354141126,1740281454970,-341.48,0.00015516,2]
[354141127,1740281454979,-204.37891366,0.00015567,2]
[354141128,1740281454992,-1056.86,0.00015616,2]
[354141129,1740281455001,-502.0,0.00015616,2]
[354141130,1740281455010,-960.0,0.0001564,2]
[354141131,1740281455020,-159.4,0.00015656,2]
[354141132,1740281455031,-869.33,0.0001568,2]
[354141133,1740281455041,-903.36,0.00015751,2]
[354141134,1740281455050,-1056.86,0.00015753,2]
[354141135,1740281455059,-1056.86,0.0001589,2]
[354141136,1740281455070,-1000.0,0.00015962,2]
[354141137,1740281455079,-700.0,0.00016,2]
[354141138,1740281455088,-1056.86,0.00016027,2]
[354141139,1740281455098,-508.31520607,0.00016064,2]
[354141140,1740281455107,-500.0,0.00016064,2]
[354141141,1740281455116,-500.0,0.00016064,2]
[354141142,1740281455126,-1222.0,0.00016103,2]
[354141143,1740281455135,-1056.86,0.00016164,2]
[354141144,1740281455146,-1060.0,0.00016213,2]
[354141145,1740281455155,-2000.0,0.0001622,2]
[354141146,1740281455165,-204.37891366,0.00016233,2]
[354141147,1740281455175,-1056.86,0.00016301,2]
[354141148,1740281455184,-581.62909,0.000164,2]
[354141149,1740281455194,-433.8166737,0.00016429,2]
[354141150,1740281455203,-1056.86,0.00016438,2]
[354141151,1740281455212,-164.64,0.00016438,2]
[354141152,1740281455222,-300.0,0.00016439,2]
[354141153,1740281455232,-606.34137818,0.0001644,2]
[354141154,1740281455242,-606.34137818,0.0001644,2]
[354141155,1740281455251,-606.34137818,0.0001644,2]
[354141156,1740281455261,-606.34137818,0.0001644,2]
[354141157,1740281455270,-606.34137818,0.0001644,2]
[354141158,1740281455279,-606.34137818,0.0001644,2]
[354141159,1740281455289,-606.34137818,0.0001644,2]
[354141160,1740281455298,-606.34137818,0.0001644,2]
[354141161,1740281455308,-606.34137818,0.0001644,2]
[354141162,1740281455319,-606.34137818,0.0001644,2]
[354141163,1740281455328,-606.34137818,0.0001644,2]
[354141164,1740281455338,-606.34137818,0.0001644,2]
[354141165,1740281455347,-606.34137818,0.0001644,2]
[354141166,1740281455357,-606.34137818,0.0001644,2]
[354141167,1740281455366,-606.34137818,0.0001644,2]
[354141168,1740281455375,-606.34137818,0.0001644,2]
[354141169,1740281455385,-606.34137818,0.0001644,2]
[354141170,1740281455394,-606.34137818,0.0001644,2]
[354141171,1740281455405,-606.34137818,0.0001644,2]
[354141172,1740281455415,-606.34,0.0001644,2]
[354141173,1740281455424,-628.9204889,0.0001644,2]
[354141174,1740281455433,-628.9204889,0.0001644,2]
[354141175,1740281455442,-628.9204889,0.0001644,2]
[354141176,1740281455451,-628.9204889,0.0001644,2]
[354141177,1740281455461,-628.9204889,0.0001644,2]
[354141178,1740281455471,-628.9204889,0.0001644,2]
[354141179,1740281455480,-628.9204889,0.0001644,2]
[354141180,1740281455489,-628.9204889,0.0001644,2]
[354141181,1740281455498,-628.9204889,0.0001644,2]
[354141182,1740281455508,-628.9204889,0.0001644,2]
[354141183,1740281455517,-628.9204889,0.0001644,2]
[354141184,1740281455526,-628.9204889,0.0001644,2]
[354141185,1740281455536,-628.9204889,0.0001644,2]
[354141186,1740281455545,-628.9204889,0.0001644,2]
[354141187,1740281455555,-628.9204889,0.0001644,2]
[354141188,1740281455564,-628.9204889,0.0001644,2]
[354141189,1740281455573,-628.9204889,0.0001644,2]
[354141190,1740281455582,-628.9204889,0.0001644,2]
[354141191,1740281455591,-628.9204889,0.0001644,2]
[354141192,1740281455600,-628.92,0.0001644,2]
[354141193,1740281455609,-797.13858346,0.0001644,2]
[354141194,1740281455618,-797.13858346,0.0001644,2]
[354141195,1740281455627,-797.13858346,0.0001644,2]
[354141196,1740281455637,-797.13858346,0.0001644,2]
[354141197,1740281455647,-797.13858346,0.0001644,2]
[354141198,1740281455657,-797.13858346,0.0001644,2]
[354141199,1740281455667,-797.13858346,0.0001644,2]
[354141200,1740281455677,-797.13858346,0.0001644,2]
[354141201,1740281455687,-797.13858346,0.0001644,2]
[354141202,1740281455697,-797.13858346,0.0001644,2]
[354141203,1740281455828,-797.13858346,0.0001644,2]
[354141204,1740281455838,-797.13858346,0.0001644,2]
[354141205,1740281455847,-797.13858346,0.0001644,2]
[354141206,1740281455856,-797.13858346,0.0001644,2]
[354141207,1740281455866,-797.13858346,0.0001644,2]
[354141208,1740281455875,-797.13858346,0.0001644,2]
[354141209,1740281455884,-797.13858346,0.0001644,2]
[354141210,1740281455893,-797.13858346,0.0001644,2]
[354141211,1740281455903,-797.13858346,0.0001644,2]
[354141212,1740281455912,-797.13,0.0001644,2]
[354141213,1740281455922,-1337.363,0.00016563,2]
[354141214,1740281455931,-203.82265411,0.00016567,2]
[354141215,1740281455940,-1056.86,0.00016575,2]
[354141216,1740281455950,-1000.0,0.0001661,2]
[354141217,1740281455959,-159.4,0.00016634,2]
[354141218,1740281455969,-324.09391,0.00016688,7]
[354141219,1740281455979,-1056.86,0.00016712,2]
[354141220,1740281455991,-1267.0,0.00016818,2]
[354141221,1740281456000,-150.0,0.00016818,2]
[354141222,1740281456010,-1056.97407894,0.00016849,2]
[354141223,1740281456020,-324.09391,0.00016888,7]
[354141224,1740281456031,-204.37891366,0.000169,2]
[354141225,1740281456040,-166.3,0.00017028,2]
[354141226,1740281456050,-960.0,0.00017062,2]
[354141227,1740281456060,-324.09391,0.00017088,7]
[354141228,1740281456070,-1534.1,0.0001726,4]
[354141229,1740281456079,-324.09391,0.00017288,7]
[354141230,1740281456088,-534.44,0.00017288,2]
[354141231,1740281456098,-568.40519479,0.00017303,2]
[354141232,1740281456107,-775.76,0.00017342,2]
[354141233,1740281456116,-324.09391,0.00017488,7]
[354141234,1740281456126,-204.37891366,0.00017567,2]
[354141235,1740281456136,-159.4,0.00017612,2]
[354141236,1740281456146,-4000.0,0.0001767,2]
[354141237,1740281456155,-324.09391,0.00017688,7]
[354141238,1740281456165,-722.1453036,0.00017756,2]
[354141239,1740281456174,-500.31748546,0.00017808,3]
[354141240,1740281456184,-324.09391,0.00017888,7]
[354141241,1740281456194,-300.0,0.00017999,2]
[354141242,1740281456203,-869.93,0.00017999,2]
[354141243,1740281456213,-50000.0,0.00018,14]
[354141244,1740281456223,-20024.43391329,0.00018048,3]
[354141245,1740281456232,-200.0,0.00018082,2]
[354141246,1740281456242,-324.09391,0.00018088,7]
[354141247,1740281456251,-540.0,0.00018137,2]
[354141248,1740281456261,-203.82265411,0.00018233,2]
[354141249,1740281456270,-204.37891366,0.00018233,2]
[354141250,1740281456279,-324.09391,0.00018288,7]
[354141251,1740281456288,-819.78,0.000183,7]
[354141252,1740281456298,-393.01146826,0.00018301,2]
[354141253,1740281456308,-157.19574938,0.00018301,2]
[354141254,1740281456317,-393.01146826,0.00018384,2]
[354141255,1740281456327,-9115.78253778,0.00018388,2]
[354141256,1740281456504,-2004.69357214,0.00018388,2]
[354141257,1740281456515,-508.00324188,0.00018388,2]
[354141258,1740281456527,-738.9608181,0.00018388,2]
[354141259,1740281456539,-737.50533136,0.00018388,2]
[354141260,1740281456656,-188.94518402,0.000109,2]
[354141261,1740281456665,-3753.94653151,0.00014791,2]
[354141262,1740281456677,-835.04991627,0.00014791,2]
[354141263,1740281456698,-282.22400001,0.00013818,2]
[354141264,1740281456709,-386.4901369,0.00013818,2]
[354141265,1740281456720,-392.53922624,0.00013818,2]
[354141266,1740281456732,-545.755,0.00013818,2]
[354141267,1740281456744,-419.99163685,0.00013818,2]
[354141268,1740281456754,-27.27989483,0.00014791,2]
[354141269,1740281456770,-2305.68935329,0.00014791,2]
[354141270,1740281456782,-1086.48280957,0.00014791,2]
[354141271,1740281456793,-1991.55149453,0.00014791,2]
[354141272,1740281456803,-570.04850527,0.000149,2]
[354141273,1740281456814,-562.94029799,0.000149,2]
[354141274,1740281456836,-8867.01119674,0.000149,2]
[354141275,1740281456847,-32668.62278452,0.00018388,2]
[354141276,1740281456861,-182171.98144177,0.00018388,2]
[354141277,1740281456872,-1292.58359335,0.00018388,2]
[354141278,1740281456887,-712.82554963,0.00018388,2]
[354141279,1740281456899,-512.6900035,0.00018388,2]
[354141280,1740281456956,-500.0,0.00010958,2]
[354141281,1740281456966,-517.10383993,0.00011041,2]
[354141282,1740281456975,-1991.32,0.00016818,2]
[354141283,1740281456985,-172.875748,0.00018179,3]
[354141284,1740281456996,-2618.70041207,0.00018388,2]
[354141285,1740281457007,-95174.34545528,0.00018388,2]
[354141286,1740281457019,-432.19494406,0.00018388,2]
[354141287,1740281457074,-21142.33863226,0.00018388,2]
[354141288,1740281457084,-151.0,0.00018388,2]
[354141289,1740281457093,-151.0,0.00018388,2]
[354141290,1740281457103,-157.19574938,0.00018411,2]
[354141291,1740281457112,-393.01146826,0.00018466,2]
[354141292,1740281457122,-324.09391,0.00018488,7]
[354141293,1740281457131,-157.19574938,0.00018521,2]
[354141294,1740281457141,-157.1957494,0.00018548,2]
[354141295,1740281457152,-10302.35858165,0.00018552,2]
[354141296,1740281457162,-200.0,0.00018565,30]
[354141297,1740281457172,-966.13225641,0.0001857,30]
[354141298,1740281457182,-966.13225641,0.00018574,30]
[354141299,1740281457192,-1920.29423655,0.00018575,30]
[354141300,1740281457201,-393.01146826,0.00018575,2]
[354141301,1740281457210,-550.63893942,0.00018582,30]
[354141302,1740281457220,-159.4,0.00018591,2]
[354141303,1740281457230,-1920.29423655,0.00018593,30]
[354141304,1740281457240,-1004.18961628,0.00018597,2]
[354141305,1740281457249,-154.61,0.000186,2]
[354141306,1740281457259,-154.61,0.000186,2]
[354141307,1740281457268,-2079.0499545,0.00018605,30]
[354141308,1740281457279,-550.63893942,0.00018606,30]
[354141309,1740281457288,-1920.29423655,0.00018608,30]
[354141310,1740281457297,-200.0,0.0001861,30]
[354141311,1740281457306,-550.63893942,0.00018615,30]
[354141312,1740281457315,-200.0,0.00018619,30]
[354141313,1740281457324,-12584.84820756,0.00018621,30]
[354141314,1740281457334,-2079.0499545,0.00018623,30]
[354141315,1740281457343,-157.19574938,0.0001863,2]
[354141316,1740281457353,-12584.84820756,0.00018631,30]
[354141317,1740281457362,-2079.0499545,0.00018633,30]
[354141318,1740281457371,-2079.0499545,0.00018634,30]
[354141319,1740281457381,-12584.84820756,0.00018638,30]
[354141320,1740281457390,-966.13225641,0.00018638,30]
[354141321,1740281457399,-966.13225641,0.00018641,30]
[354141322,1740281457408,-550.63893942,0.00018643,30]
[354141323,1740281457417,-12584.84820756,0.00018647,30]
[354141324,1740281457427,-200.0,0.00018648,30]
[354141325,1740281457437,-200.0,0.00018649,30]
[354141326,1740281457447,-393.01146826,0.00018658,2]
[354141327,1740281457457,-200.0,0.0001866,30]
[354141328,1740281457467,-487.08604174,0.0001867,2]
[354141329,1740281457477,-200.0,0.00018673,30]
[354141330,1740281457486,-200.0,0.00018674,30]
[354141331,1740281457496,-1920.29423655,0.00018682,30]
[354141332,1740281457506,-324.09391,0.00018688,7]
[354141333,1740281457515,-393.01146826,0.0001874,2]
[354141334,1740281457525,-157.19574938,0.0001874,2]
[354141335,1740281457535,-400.0,0.0001877,2]
[354141336,1740281457544,-1231.39627266,0.0001877,2]
[354141337,1740281457556,-122.63791357,0.0001877,2]
[354141338,1740281457566,-157.1957494,0.00018795,2]
[354141339,1740281457575,-388.47476849,0.00018804,2]
[354141340,1740281457587,-111.52523151,0.00018804,2]
[354141341,1740281457597,-500.0,0.00018804,2]
[354141342,1740281457607,-47.10777224,0.00018822,2]
[354141343,1740281457623,-343.53915486,0.00018822,2]
[354141344,1740281457635,-2.36454116,0.00018822,2]
[354141345,1740281457644,-157.19574938,0.00018849,2]
[354141346,1740281457653,-500.0,0.00018867,2]
[354141347,1740281457663,-151.84973946,0.00018888,7]
[354141348,1740281457683,-188.94518402,0.000109,2]
[354141349,1740281457692,-172.24417054,0.00018888,7]
[354141350,1740281457702,-204.37891366,0.000189,2]
[354141351,1740281457711,-393.01146826,0.00018904,2]
[354141352,1740281457721,-157.19574938,0.00018959,2]
[354141353,1740281457730,-500.0,0.00018967,2]
[354141354,1740281457740,-400.0,0.0001897,2]
[354141355,1740281457749,-700.0,0.0001897,2]
[354141356,1740281457759,-24933.91961206,0.00018999,2]
[354141358,1740281477587,178.17,8.767e-05,2]
[354141359,1740282354608,348.0,0.0002,120]
[354141362,1740282632213,-557.86001028,0.00010858,2]
[354141363,1740282632223,-3885.5766,0.00010858,2]
[354141364,1740282632233,-150.0,0.00010932,2]
[354141365,1740282632242,-269.896463,0.00010958,2]
[354141366,1740282632252,-289.523551,0.00010958,2]
[354141367,1740282632261,-504.58397063,0.00010958,2]
[354141368,1740282632270,-501.37830831,0.00010958,2]
[354141369,1740282632279,-500.57721592,0.00010958,2]
[354141370,1740282632288,-507.31042298,0.00010958,2]
[354141371,1740282632298,-505.64623741,0.00010958,2]
[354141372,1740282632307,-296.84130319,0.00010958,2]
[354141373,1740282632316,-505.99810891,0.00010958,2]
[354141374,1740282632381,-7.9497201,0.00010958,2]
[354141375,1740282632390,-490.74028606,0.00010958,2]
[354141376,1740282632402,-15.11779638,0.00010958,2]
[354141377,1740282632413,-283.88836273,0.00010958,2]
[354141378,1740282632438,-216.11163727,0.00010958,2]
[354141379,1740282632448,-165.96836273,0.00010958,2]
[354141380,1740282632497,-334.03163727,0.00010958,2]
[354141381,1740282632507,-82.69534619,0.00010958,2]
[354141430,1740282638185,-417.30465381,0.00010958,2]
[354141431,1740282638195,-508.69845,0.00010958,2]
[354141432,1740282638204,-512.08759153,0.00010958,2]
[354141433,1740282638212,-263.6197423,0.00010958,2]
[354141434,1740282638241,-244.48766697,0.00010958,2]
[354141435,1740282638250,-512.27343451,0.00010958,2]
[354141436,1740282638259,-506.28984744,0.00010958,2]
[354141437,1740282638268,-562.93508532,0.00010958,2]
[354141438,1740282638277,-241.84365422,0.00010958,2]
[354141439,1740282638286,-507.76032576,0.00010958,2]
[354141440,1740282638295,-504.11310344,0.00010958,2]
[354141441,1740282638304,-510.43773852,0.00010958,2]
[354141442,1740282638313,-500.0,0.00010958,2]
[354141443,1740282638322,-502.01923191,0.00010958,2]
[354141444,1740282638331,-364.85,0.00010958,2]
[354141445,1740282638340,-507.37681502,0.00010958,2]
[354141446,1740282638349,-369.49442447,0.00010958,2]
[354141447,1740282638366,-110.21358275,0.00010958,2]
[354141448,1740282638375,-246.74061894,0.00010958,2]
[354141449,1740282638384,-506.47400815,0.00010958,2]
[354141450,1740282638393,-505.86692299,0.00010958,2]
[354141451,1740282638403,-510.66557313,0.00010958,2]
[354141452,1740282638412,-310.73,0.00010958,2]
[354141453,1740282638422,-502.61732885,0.00010958,2]
[354141454,1740282638431,-171.99760134,0.00010958,2]
[354141455,1740282638443,-328.00239866,0.00010958,2]
[354141456,1740282638453,-155.35668848,0.00010958,2]
[354141457,1740282638462,-508.88930547,0.00010958,2]
[354141458,1740282638471,-574.28532922,0.00010958,2]
[354141459,1740282638480,-614.80257084,0.00010958,2]
[354141460,1740282638489,-504.66409782,0.00010958,2]
[354141461,1740282638498,-217.21434651,0.00010958,2]
[354141462,1740282638508,-506.38309494,0.00010958,2]
[354141463,1740282638517,-502.5122579,0.00010958,2]
[354141465,1740282638527,-503.48837187,0.00010958,2]
[354141467,1740282638536,-198.6085044,0.00010958,2]
[354141469,1740282638545,-506.30382294,0.00010958,2]
[354141470,1740282638554,-514.49765394,0.00010958,2]
[354141471,1740282638563,-508.74754493,0.00010958,2]
[354141472,1740282638572,-505.86596152,0.00010958,2]
[354141473,1740282638580,-511.45106041,0.00010958,2]
[354141474,1740282638589,-509.85820706,0.00010958,2]
[354141475,1740282638598,-279.12961827,0.00010958,2]
[354141476,1740282638607,-500.0,0.00010958,2]
[354141477,1740282638616,-500.0,0.00010958,2]
[354141478,1740282638625,-500.0,0.00010958,2]
[354141479,1740282638634,-500.0,0.00010958,2]
[354141480,1740282638643,-500.0,0.00010958,2]
[354141481,1740282638652,-500.0,0.00010958,2]
[354141482,1740282638661,-500.0,0.00010958,2]
[354141483,1740282638670,-500.0,0.00010958,2]
[354141484,1740282638678,-317.02244289,0.00010958,2]
[354141485,1740282638687,-446.5335969,0.00010958,2]
[354141486,1740282638696,-157.41713813,0.00010958,2]
[354141487,1740282638704,-194.35079404,0.00010958,2]
[354141488,1740282638713,-503.7787768,0.00010958,2]
[354141489,1740282638722,-509.10037313,0.00010958,2]
[354141490,1740282638731,-505.81744599,0.00010958,2]
[354141491,1740282638740,-506.16575299,0.00010958,2]
[354141492,1740282638749,-422.3940771,0.00010958,2]
[354141493,1740282638758,-150.0,0.00010999,2]
[354141494,1740282638767,-500.0,0.00010999,2]
[354141495,1740282638775,-150.0,0.00010999,2]
[354141496,1740282638784,-450.57415372,0.00010999,2]
[354141497,1740282638797,-49.42584628,0.00010999,2]
[354141498,1740282638806,-394.23651693,0.00011,2]
[354141500,1740282640401,-105.76348307,0.00011,2]
[354141501,1740282640411,-271.85232518,0.00011041,2]
[354141502,1740282640420,-506.46718634,0.00011041,2]
[354141503,1740282640429,-235.64876821,0.00011041,2]
[354141504,1740282640440,-296.20314251,0.00011041,2]
[354141505,1740282640617,-204.37891366,0.000119,2]
[354141506,1740282640627,-1629.63958805,0.00012087,2]
[354141507,1740282640676,-8370.35041195,0.00012087,2]
[354141508,1740282640686,-163.95,0.00013,2]
[354141509,1740282640696,-150.90207334,0.00013304,2]
[354141510,1740282640705,-151.0,0.0001337,2]
[354141511,1740282640714,-151.0,0.0001337,2]
[354141512,1740282640724,-154.542302,0.0001337,2]
[354141513,1740282640734,-482.07581131,0.00013574,2]
[354141514,1740282640743,-172.15,0.00013699,2]
[354141515,1740282640752,-5800.0,0.00013794,2]
[354141516,1740282640761,-2266.70233895,0.000138,2]
[354141517,1740282640771,-426.47,0.00014185,2]
[354141518,1740282640780,-500.0,0.00014235,2]
[354141519,1740282640789,-251.33637502,0.00014347,2]
[354141520,1740282640799,-367.0,0.000146,2]
[354141521,1740282640808,-712.0,0.000146,2]
[354141522,1740282640817,-151.0,0.00014791,2]
[354141523,1740282640827,-755.0,0.000148,2]
[354141524,1740282640836,-500.0,0.00015068,2]
[354141525,1740282640845,-500.0,0.00015589,2]
[354141526,1740282640855,-500.0,0.00015772,2]
[354141527,1740282640864,-500.0,0.00016064,2]
[354141528,1740282640874,-500.0,0.00016064,2]
[354141529,1740282640884,-443.2659774,0.00016111,2]
[354141530,1740282640894,-200.0,0.00016146,2]
[354141531,1740282640904,-315.91,0.00016175,2]
[354141532,1740282640914,-159.4,0.00016202,2]
[354141533,1740282640924,-23900.0,0.00016207,2]
[354141534,1740282640934,-250.0,0.00016268,2]
[354141535,1740282640943,-167.04,0.00016332,2]
[354141537,1740282640952,-1000.0,0.00016382,2]